Cogmind - Beta 10 @@@ ROGUE MODE // 2020.09.15 @ 22:52:52 Player: Honkmo Jones Result: Destroyed by G-47 Trooper with Particle Gun Performance ------------- Evolutions (0) 0 Regions Visited (1) 200 Robots Destroyed (14) 70 Value Destroyed (413) 413 Prototype IDs (0) 0 Alien Tech Used (0) 0 Bonus (0) 0 TOTAL SCORE: 683 Bonus ------- None Cogmind --------- Core Integrity 0/250 Matter 247/300 Energy 119/125 System Corruption 1% Temperature Cool (18) Movement Walking (180) Ox2 Location -10/Materials Parts ------- > --- POWER (1) -------- Light Ion Engine > --- PROPULSION (2) --- Aluminum Leg Aluminum Leg > --- UTILITY (2) ------ Large Storage Unit High-capacity Storage Unit > --- WEAPON (2) ------- Autogun Autogun > --- INVENTORY (18) --- Light Nuclear Core Light Treads Aluminum Leg Large Storage Unit Improved Terrain Scanner Targeting Computer Targeting Computer Weapon Shielding EM Pulse Gun EM Pulse Gun EM Shotgun Autogun Grenade Launcher Peak State ------------ > --- POWER ------------ Ion Engine > --- PROPULSION ------- Aluminum Leg Aluminum Leg > --- UTILITY ---------- Large Storage Unit High-capacity Storage Unit > --- WEAPON ----------- Spread Laser Autogun > --- INVENTORY -------- Light Ion Engine Light Nuclear Core Light Treads Aluminum Leg Aluminum Leg Aluminum Leg Large Storage Unit Improved Terrain Scanner Targeting Computer Targeting Computer Weapon Shielding EM Pulse Gun EM Pulse Gun EM Shotgun Autogun Autogun Autogun [Rating: 11] Favorites ----------- Power Ion Engine Engine Ion Engine Propulsion Aluminum Leg Treads Light Treads Leg Aluminum Leg Utility Large Storage Unit Storage Large Storage Unit Weapon Assault Rifle Energy Gun EM Pulse Gun Ballistic Gun Assault Rifle Launcher Grenade Launcher Build | -11 -10 ------- Run | Scr Mat Slots Evolved . | . . Power . | . . Propulsion . | . . Utility . | . . Weapon . | . . Parts Attached 26 | 6 20 Power 2 | 1 1 Engine 2 | 1 1 Core . | . . Reactor . | . . Propulsion 9 | 2 7 Treads 1 | . 1 Leg 8 | 2 6 Wheel . | . . Hover . | . . Flight . | . . Utility 3 | 1 2 Device . | . . Storage 3 | 1 2 Processor . | . . Hackware . | . . Protection . | . . Artifact . | . . Weapon 12 | 2 10 Energy Gun 5 | 1 4 Energy Cannon . | . . Ballistic Gun 6 | 1 5 Ballistic Cannon . | . . Launcher 1 | . 1 Special Weapon . | . . Impact Weapon . | . . Slashing Weapon . | . . Piercing Weapon . | . . Special Melee Weapon . | . . Unidentified Prototypes . | . . Parts Lost 10 | . 10 Power 1 | . 1 Propulsion 4 | . 4 Utility . | . . Weapon 5 | . 5 Highest Loss Streak 7 | . 7 Average Slot Usage (%) 97 | . 97 Engine 13 | . 13 Leg 26 | . 26 Storage 27 | . 27 Energy Gun 10 | . 10 Ballistic Gun 13 | . 13 Launcher 3 | . 3 Naked Turns . | . . Heaviest Build 59 | 12 59 Greatest Support 20 | 20 20 Greatest Overweight (x) 18 | 2 18 Average Overweight (x) 1 | . 1 Largest Inventory Capacity 18 | 6 18 Average Capacity 14 | 5 15 Most Carried 18 | 6 18 Average Carried 11 | 3 12 Final Capacity 18 | 6 18 Final Carried 13 | 6 13 Class Distribution -------------------- 100% | Mutant Dominant Class ---------------- Mutant | -10/Materials Resources | -11 -10 ----------- Run | Scr Mat Matter Collected 501 | 263 238 Remotely . | . . Salvage Created 460 | 28 432 Parts 27 | 4 23 Haulers Intercepted . | . . Recyclers Shooed . | . . Parts Field Recycled . | . . Retrieved Matter . | . . Parts Self-Destructed . | . . Prevented . | . . Kills | -11 -10 ------- Run | Scr Mat Combat Hostiles Destroyed 13 | . 13 Guns 8 | . 8 AOE 5 | . 5 Classes Destroyed 3 | 1 2 Tunneler 1 | 1 . Swarmer 3 | . 3 Grunt 10 | . 10 Best Kill Streak 4 | 1 4 Combat Bots Only 4 | . 4 Max Kills in Single Turn 3 | 1 3 Gunslinging . | . . Exploded 3 | . 3 Melee . | . . Uniques/NPCs Destroyed . | . . Combat | -11 -10 -------- Run | Scr Mat Damage Taken 1408 | . 1408 Core 256 | . 256 Absorbed by Shields . | . . Core Remaining (%) 100 | 100 . Volleys Fired 43 | 2 41 Largest 2 | 1 2 Hottest 88 | 40 88 Shots Fired 59 | 2 57 Gun 57 | 2 55 Cannon . | . . Launcher 2 | . 2 Special . | . . Kinetic 37 | 1 36 Thermal 6 | 1 5 Explosive 2 | . 2 Electromagnetic 14 | . 14 Robot Hit Streak 10 | 2 10 Robot Miss Streak 3 | . 3 Penetration Max . | . . Secondary Targets . | . . Shots Hit Robots 42 | 2 40 Core Hits 29 | 1 28 Critical Hits . | . . Critical Kills . | . . Critical Parts Destroyed . | . . Melee Attacks . | . . Impact . | . . Slashing . | . . Piercing . | . . Sneak Attacks . | . . Combat Hostiles . | . . Follow-up Attacks . | . . Damage Inflicted 822 | 22 800 Guns 528 | 22 506 Cannons . | . . Explosions 294 | . 294 Melee . | . . Ramming . | . . Kinetic 324 | 10 314 Thermal 163 | 12 151 Explosive 200 | . 200 Electromagnetic 135 | . 135 Impact . | . . Slashing . | . . Piercing . | . . Highest Corruption 1 | . 1 Average Corruption 1 | . 1 Corruption Purged . | . . Effects 1 | . 1 Data Loss (minor) 1 | . 1 Overload Shots . | . . Overflow Damage . | . . Projectiles . | . . Explosions . | . . Melee . | . . Knockbacks . | . . Impact . | . . Kinetic . | . . Secondary . | . . Self-Inflicted Damage 34 | . 34 Shots 1 | . 1 Rammed . | . . Targets Rammed . | . . Kicked . | . . Crushed . | . . Highest Temperature 156 | . 156 Average Temperature 40 | . 40 Received Heat Transfer 717 | . 717 Siege Activations . | . . Robots Corrupted . | . . Combat Hostiles . | . . Parts Fried . | . . Impact Corruptions . | . . Robots Melted . | . . Combat Hostiles . | . . Parts Melted . | . . Heat Transferred 210 | 25 185 Parts Sabotaged . | . . Parts Stolen . | . . Parts Stripped . | . . Power Chain Reactions 1 | . 1 Missiles Intercepted . | . . Alert | -11 -10 ------- Run | Scr Mat Peak Influence 164 | 5 164 Initial 3 | . 3 Average 55 | . 60 Maximum Alert Level . | . . Low Security (%) 100 | 100 100 Level 1 . | . . Level 2 . | . . Level 3 . | . . Level 4 . | . . Level 5 . | . . High Security . | . . Max Security . | . . Squads Dispatched 6 | . 6 Investigation 6 | . 6 Extermination . | . . Reinforcement . | . . Assault . | . . Garrison . | . . Intercept . | . . Construction Impeded . | . . Haulers Reinforced . | . . Stealth | -11 -10 --------- Run | Scr Mat Distress Signals . | . . Communications Jammed . | . . Distress Signals . | . . Times Spotted 25 | . 25 Peak Tracking Total 7 | . 7 Tactical Retreats 5 | . 5 Traps | -11 -10 ------- Run | Scr Mat Traps Triggered 4 | . 4 Indirectly . | . . Trap Hack Attempts . | . . Triggered . | . . Disarmed . | . . Reprogrammed . | . . Reused . | . . Traps Extracted . | . . Installed . | . . Triggered . | . . Machines | -11 -10 ---------- Run | Scr Mat Machines Disabled 1 | . 1 Max in Single Turn 1 | . 1 Machines Sabotaged . | . . Garrisons Compromised . | . . Overloaded Fab Kills . | . . Fab Network Shutdowns . | . . Hacking | -11 -10 --------- Run | Scr Mat Machines Accessed 6 | . 6 Terminals 5 | . 5 Fabricators . | . . Repair Stations . | . . Recycling Units 1 | . 1 Scanalyzers . | . . Garrison Access . | . . Total Hacks 20 | . 20 Successful 8 | . 8 Failed 12 | . 12 Catastrophic . | . . Database Lockouts . | . . Manual 20 | . 20 Terminals 18 | . 18 Fabricators . | . . Repair Stations . | . . Recycling Units 2 | . 2 Scanalyzers . | . . Garrison Access . | . . Terminal Hacks 3 | . 3 Robot Analysis 1 | . 1 Terminal Index 2 | . 2 Fabricator Hacks . | . . Repair Station Hacks . | . . Recycling Unit Hacks . | . . Scanalyzer . | . . Garrison Access Hacks . | . . Unauthorized Hacks 5 | . 5 Terminals 3 | . 3 Botnet 3 | . 3 Fabricators . | . . Repair Stations . | . . Recycling Units 2 | . 2 Reject 1 | . 1 Recyclers 1 | . 1 Scanalyzers . | . . Garrison Access . | . . Data Cores Recovered . | . . Used . | . . Hacking Detections 6 | . 6 Full Trace Events 5 | . 5 Feedback Events . | . . Feedback Blocked . | . . Robot Schematics Acquired . | . . Robots Built . | . . Matter . | . . Time . | . . Total Robot Build Rating . | . . Part Schematics Acquired . | . . Parts Built . | . . Matter . | . . Time . | . . Total Part Build Rating . | . . Parts Repaired . | . . Time . | . . Parts Recycled . | . . Recycled Matter . | . . Retrieved Matter . | . . Retrieved Components . | . . Parts Scanalyzed . | . . Part Schematics Acquired . | . . Parts Damaged . | . . Bothacking | -11 -10 ------------ Run | Scr Mat Used RIF Installer . | . . Robots Hacked . | . . Non-combat . | . . Combat . | . . Robot Hacks Applied . | . . Relay Couplers Released . | . . Robots Rewired . | . . Allies Hacked . | . . Hacks Repelled . | . . Allies | -11 -10 -------- Run | Scr Mat Total Allies . | . . Largest Group . | . . Highest-Rated Group . | . . Highest-Rated Ally . | . . Total Orders . | . . Ally Attacks . | . . Total Damage . | . . Kills . | . . Allies Corrupted . | . . Allies Melted . | . . Intel | -11 -10 ------- Run | Scr Mat Robot Analysis Total 1 | . 1 Derelict Logs Recovered . | . . Drone Launches . | . . Drone Recoveries . | . . Exploration | -11 -10 ------------- Run | Scr Mat Turns Passed 1295 | 119 1176 Spaces Moved 499 | 49 450 Core 13 | 12 1 Treads 1 | . 1 Legs 485 | 37 448 Wheels . | . . Hover . | . . Flight . | . . Fastest Speed 50 | 50 120 Average Speed 166 | 119 172 Slowest Speed 950 | 150 950 Overloaded Moves . | . . Propulsion Burnouts . | . . Robots Hopped . | . . Cave-ins Triggered . | . . Exploration Rate (%) 31 | 4 58 Regions Visited 1 Branch Regions . Pre-discovered Areas . | . . Known Exits Taken . | . . Unknown Exits Taken 1 | 1 . Scrap Searched . | . . Spaces Dug . | . . Terrain Destroyed 22 | . 22 Melee . | . . Projectile . | . . AOE 22 | . 22 Terrain Rammed . | . . Walls Destroyed . | . . Machines Disabled . | . . Actions | -11 -10 --------- Run | Scr Mat Total 909 | 107 802 Wait 291 | 39 252 Move 498 | 48 450 Hop . | . . Pick Up 39 | 12 27 Fast Attach 3 | . 3 Attach 20 | 6 14 Detach . | . . Swap 3 | . 3 Drop 12 | . 12 Fire 43 | 2 41 Melee . | . . Ram . | . . Kick . | . . Crush . | . . Escape Stasis . | . . Rewire . | . . Trap . | . . Miscellaneous . | . . Route ------- -11/Scrapyard -10/Materials (discovered 2 exits: [*Mat] / [*Min]) History --------- Turn | Location | Event 11 | -11/Scrapyard | Discovered new exit (range 16) 120 | -11/Scrapyard | Entered Materials 307 | -10/Materials | Build established: Mutant 612 | -10/Materials | Core integrity fell below 50% 983 | -10/Materials | Discovered new exit (range 8) 1148 | -10/Materials | Discovered new exit (range 13) 1264 | -10/Materials | Core integrity fell below 20% 1296 | -10/Materials | Destroyed by G-47 Trooper with Particle Gun Last Messages --------------- 01241_ Acquired 10 matter. 01243_ EM Pulse Gun destroyed. 01245_ K-01 Serf collects debris. 01247_ Acquired 10 matter. 01248_ Acquired 4 matter. 01249_ K-01 Serf collects debris. 01253_ Ion Engine destroyed. 01257_ G-34 Mercenary destroyed. 01259_ Aluminum Leg destroyed. 01260_ Triggered Alarm Trap. 01260_ An alarm sounds. 01260_ ALERT: Alarm triggered, dispatching investigation squad. 01265_ K-01 Serf collects debris. 01266_ G-47 Trooper misfires. 01267_ Autogun destroyed. 01270_ Spread Laser destroyed. 01270_ K-01 Serf collects debris. 01276_ Acquired Grenade Launcher. 01278_ U-05 Engineer lays Concrete. 01291_ Aluminum Leg destroyed. Map ----- +----------------------------------------------------+ | ?????????????????????????????????####+ | | ?????????????????????????????????????? | | ?????????????????????????????????????? | | ?????????????????????????????????????? | | ?????????????????????????????????????? | | ?????????????????????????????????????? | | ?????????????????????????????????????# | | ???????????????????????????????????# # | | ???????????????????????+???????????# | | ??????????????????????? ?????????????# | | ??????????????????????? ?????????????? | | ??????????????????????# ?????????????? | | ????????????????????### ###??????????? | | ????????????????????# ###+#######? | | ????????????????????# #? | | ????????????????????+ #? | | ????????????????????# #? | | ????????????????????# ###/### ## | | ?????????????????????# #?# # | | ????????????########## #?# # | | ????????????# # = #?# # "T | | ????????????# """ # % ### # | | ????????????# """ # ** %/! # | | ????????????# """ # ### # """ | | ????????????+ g = + #?# # """ | | ????????????#@ """ #####?# # """ | | ????????????# """ #?????# # | | ????????????#gg"""g #?????###### | | ????????????# g g #??????????## | | ????????????##########???????????# < | | ?????????????????????????????????? | | ?????????????????????????????????? | | ????????????????????????????????????## | | ?????????????????????????????????????? | | ?????????????????????????????????????? | | ?????????????????????????????????????? | | ?????????????????????????????????????? | | ?????????????????????????????????????? | | ?????????????????????????????????????? | | | | | | | | | | | | | | | | | | | | | | | +----------------------------------------------------+ Best States ------------- Heat Dissipation 25 Energy Generation 10 Energy Capacity 250 Matter Stores 300 Matter Capacity 300 Sight Range 16 Terrain Scan Density 10 Evasion (%) 40 Recoil Reduction 1 Item Schematics ----------------- None Robot Schematics ------------------ None Fabricated ------------ Nothing Alien Tech Used ----------------- None Achievements -------------- None Challenges ------------ None Game ------ Seed HelicalThiefGun Manual? 0 Play Time 00:16:47 Cumulative 7.7 hours Start 2020.09.14 @ 15:55:47 End 2020.09.15 @ 22:52:52 Sessions 3 Manual Loads 0 Difficulty Rogue Special Mode None Game No. 21 Rogue 21 Adventurer 0 Explorer 0 Win Type - Total 0 Types 0/0/0/0/0/0/0/0/0 Lore% 14 Gallery% 12 Achievement% 13 Wizard Run 0 Options --------- ASCII 0 Keyboard 0 Movement Mouse Keybinds 0 Fullscreen 2 Font 14/Dina Map View 84x54 Tactical HUD 1 Map Filters NONE Filters NONE Steam 1 RUN: d8f93bef-880c-4e1c-b083-585bcb8acfd5